[Event "GrandPrix_30.05"]
[Site "Chess.com"]
[Date "2020.05.30"]
[Round "4"]
[White "Arm-Akiba"]
[Black "Martin_Petrov2000"]
[Result "0-1"]
[WhiteElo "2699"]
[BlackElo "2276"]
[TimeControl "600+2"]
[EndTime "9:55:39 PDT"]
[Termination "Martin_Petrov2000 won by resignation"]

1. d4 {[%clk 0:10:01.9]} 1... Nf6 {[%clk 0:09:59.9]} 2. c4 {[%clk 0:10:01.6]}
2... e6 {[%clk 0:10:01]} 3. Nf3 {[%clk 0:10:02.2]} 3... b6 {[%clk 0:10:00.8]} 4.
g3 {[%clk 0:10:02.1]} 4... Ba6 {[%clk 0:10:01.2]} 5. b3 {[%clk 0:09:59.2]} 5...
Bb4+ {[%clk 0:10:00.9]} 6. Bd2 {[%clk 0:09:59.9]} 6... Be7 {[%clk 0:10:01.8]} 7.
Bg2 {[%clk 0:10:01]} 7... O-O {[%clk 0:10:02.4]} 8. O-O {[%clk 0:10:00.5]} 8...
d5 {[%clk 0:10:03.1]} 9. cxd5 {[%clk 0:10:00.1]} 9... exd5 {[%clk 0:10:05]} 10.
Nc3 {[%clk 0:10:00.6]} 10... Re8 {[%clk 0:10:05.3]} 11. Bg5 {[%clk 0:10:00.7]}
11... Nbd7 {[%clk 0:08:09.7]} 12. Rc1 {[%clk 0:09:30.8]} 12... Nf8 {[%clk
0:06:34]} 13. Ne5 {[%clk 0:09:26.4]} 13... Bb7 {[%clk 0:06:34.6]} 14. e3 {[%clk
0:08:57.2]} 14... Ne6 {[%clk 0:06:29.5]} 15. Bxf6 {[%clk 0:08:56]} 15... Bxf6
{[%clk 0:06:31.4]} 16. f4 {[%clk 0:08:57.2]} 16... a6 {[%clk 0:05:36]} 17. g4
{[%clk 0:08:54.3]} 17... Rc8 {[%clk 0:05:29]} 18. g5 {[%clk 0:08:52.4]} 18...
Be7 {[%clk 0:05:00]} 19. Qg4 {[%clk 0:08:51.1]} 19... c5 {[%clk 0:04:46]} 20.
Nxf7 {[%clk 0:08:34.3]} 20... Kxf7 {[%clk 0:04:38.6]} 21. Qf5+ {[%clk
0:08:29.7]} 21... Kg8 {[%clk 0:04:26.4]} 22. Qxe6+ {[%clk 0:08:24.6]} 22... Kh8
{[%clk 0:04:27.1]} 23. Nxd5 {[%clk 0:07:51.7]} 23... cxd4 {[%clk 0:04:11.3]} 24.
Rxc8 {[%clk 0:06:10.1]} 24... Bxc8 {[%clk 0:04:10.4]} 25. Qxb6 {[%clk
0:06:10.8]} 25... Qxb6 {[%clk 0:04:07.3]} 26. Nxb6 {[%clk 0:06:10]} 26... dxe3
{[%clk 0:04:03.6]} 27. Nxc8 {[%clk 0:03:29.9]} 27... Bc5 {[%clk 0:04:00.9]} 28.
b4 {[%clk 0:03:20.4]} 28... Bd4 {[%clk 0:01:46.9]} 29. Bb7 {[%clk 0:03:19.7]}
29... e2+ {[%clk 0:01:45.8]} 30. Kg2 {[%clk 0:03:21]} 30... exf1=Q+ {[%clk
0:01:43.8]} 31. Kxf1 {[%clk 0:03:22.9]} 31... Rf8 {[%clk 0:01:43.9]} 32. Bxa6
{[%clk 0:03:22]} 32... Rxf4+ {[%clk 0:01:41.9]} 33. Ke2 {[%clk 0:03:23.2]} 33...
Be5 {[%clk 0:01:16.7]} 34. b5 {[%clk 0:02:38.8]} 34... Ra4 {[%clk 0:01:16]} 35.
h3 {[%clk 0:02:31.5]} 35... Kg8 {[%clk 0:01:03.9]} 36. Bb7 {[%clk 0:02:19.1]}
36... Rxa2+ {[%clk 0:00:55.2]} 37. Kd3 {[%clk 0:02:18.9]} 37... Ra3+ {[%clk
0:00:54.7]} 38. Ke4 {[%clk 0:02:17.5]} 38... Bb8 {[%clk 0:00:54.6]} 39. Bd5+
{[%clk 0:02:10.1]} 39... Kf8 {[%clk 0:00:54.8]} 40. Be6 {[%clk 0:02:11.3]} 40...
Ke8 {[%clk 0:00:38]} 41. Nb6 {[%clk 0:01:59.5]} 41... Ke7 {[%clk 0:00:33.2]} 42.
Bg4 {[%clk 0:02:00.1]} 42... Rb3 {[%clk 0:00:29.1]} 43. Nc8+ {[%clk 0:01:35.9]}
43... Kd8 {[%clk 0:00:27.7]} 44. b6 {[%clk 0:01:37.3]} 44... Rb5 {[%clk
0:00:25.9]} 45. Kd4 {[%clk 0:01:26.6]} 45... Rxg5 {[%clk 0:00:25.5]} 46. b7
{[%clk 0:01:24.5]} 46... h5 {[%clk 0:00:23.7]} 47. Be6 {[%clk 0:01:20.2]} 47...
Rb5 {[%clk 0:00:23.2]} 48. Bd5 {[%clk 0:01:18.4]} 48... g5 {[%clk 0:00:22.8]}
49. Kc4 {[%clk 0:01:15.6]} 49... Rb1 {[%clk 0:00:19]} 50. Be4 {[%clk 0:01:13.5]}
50... Rb2 {[%clk 0:00:19.6]} 51. Kc3 {[%clk 0:01:13.2]} 51... Rh2 {[%clk
0:00:20.4]} 52. Bf5 {[%clk 0:01:13.3]} 52... Rf2 {[%clk 0:00:20]} 53. Be6 {[%clk
0:01:10.5]} 53... Rf6 {[%clk 0:00:20.8]} 54. Bd5 {[%clk 0:01:10.7]} 54... g4
{[%clk 0:00:20.8]} 55. hxg4 {[%clk 0:01:12.1]} 55... hxg4 {[%clk 0:00:22.4]} 56.
Kd3 {[%clk 0:01:13.5]} 56... g3 {[%clk 0:00:23.2]} 57. Ke3 {[%clk 0:01:13.9]}
57... Rf5 {[%clk 0:00:22.5]} 58. Bc6 {[%clk 0:01:11.8]} 58... Rf6 {[%clk
0:00:21.5]} 59. Bd5 {[%clk 0:01:12]} 59... Rf1 {[%clk 0:00:19.6]} 60. Nb6 {[%clk
0:01:11.5]} 60... Ba7 {[%clk 0:00:16.5]} 61. Ke2 {[%clk 0:01:08.4]} 61... Rf2+
{[%clk 0:00:17.4]} 62. Ke1 {[%clk 0:01:02.7]} 62... Kc7 {[%clk 0:00:18]} 63. Nc8
{[%clk 0:00:55.3]} 63... Bc5 {[%clk 0:00:15.1]} 0-1

[Event "GrandPrix_30.05"]
[Site "Chess.com"]
[Date "2020.05.30"]
[Round "4"]
[White "Funo09"]
[Black "GMMarcinDziuba"]
[Result "1-0"]
[WhiteElo "2696"]
[BlackElo "2542"]
[TimeControl "600+2"]
[EndTime "9:55:43 PDT"]
[Termination "Funo09 won by resignation"]

1. e4 {[%clk 0:10:01.9]} 1... c6 {[%clk 0:10:00.2]} 2. Nc3 {[%clk 0:10:02.2]}
2... d5 {[%clk 0:10:02.1]} 3. Nf3 {[%clk 0:10:03.7]} 3... Bg4 {[%clk 0:09:59.3]}
4. h3 {[%clk 0:10:04.5]} 4... Bxf3 {[%clk 0:10:00.5]} 5. gxf3 {[%clk 0:10:06.4]}
5... e6 {[%clk 0:09:52.3]} 6. d4 {[%clk 0:10:05.9]} 6... Nf6 {[%clk 0:09:43.3]}
7. Rg1 {[%clk 0:09:54.5]} 7... g6 {[%clk 0:09:32.4]} 8. Bg5 {[%clk 0:09:55.4]}
8... Be7 {[%clk 0:09:32.6]} 9. Qd2 {[%clk 0:09:46.8]} 9... Nbd7 {[%clk
0:09:01.5]} 10. O-O-O {[%clk 0:09:27.8]} 10... Nh5 {[%clk 0:09:02.3]} 11. Bxe7
{[%clk 0:08:41.7]} 11... Kxe7 {[%clk 0:09:03.1]} 12. Re1 {[%clk 0:06:28.3]}
12... Nb6 {[%clk 0:08:58.7]} 13. Be2 {[%clk 0:06:03.2]} 13... Qc7 {[%clk
0:08:55.9]} 14. Rg4 {[%clk 0:04:51.4]} 14... Nf6 {[%clk 0:08:49.2]} 15. Rg5
{[%clk 0:04:34.6]} 15... h6 {[%clk 0:08:40.2]} 16. Rgg1 {[%clk 0:04:32.9]} 16...
Nh5 {[%clk 0:08:34.7]} 17. Rg4 {[%clk 0:04:11.3]} 17... Rad8 {[%clk 0:08:07.8]}
18. Qe3 {[%clk 0:04:07.7]} 18... Nf6 {[%clk 0:07:32.2]} 19. Rgg1 {[%clk
0:04:07.2]} 19... Nh5 {[%clk 0:07:32.3]} 20. Rg4 {[%clk 0:04:07.9]} 20... g5
{[%clk 0:07:26.2]} 21. h4 {[%clk 0:03:31.1]} 21... Nf6 {[%clk 0:06:49.2]} 22.
Rgg1 {[%clk 0:03:27.8]} 22... gxh4 {[%clk 0:06:33.8]} 23. e5 {[%clk 0:03:24.3]}
23... Nfd7 {[%clk 0:06:31.5]} 24. Qf4 {[%clk 0:03:11.9]} 24... Rdf8 {[%clk
0:06:11.2]} 25. Qxh4+ {[%clk 0:03:02]} 25... Ke8 {[%clk 0:06:11.1]} 26. f4
{[%clk 0:02:52.9]} 26... Qd8 {[%clk 0:05:44.7]} 27. Qh3 {[%clk 0:02:50.9]} 27...
Qe7 {[%clk 0:05:36.6]} 28. f5 {[%clk 0:02:48.1]} 28... Kd8 {[%clk 0:05:04.4]}
29. a3 {[%clk 0:01:47.7]} 29... Kc7 {[%clk 0:04:49.5]} 30. f6 {[%clk 0:01:43.7]}
30... Qe8 {[%clk 0:04:26.7]} 31. Rg7 {[%clk 0:01:21.7]} 31... a6 {[%clk
0:04:24.3]} 32. f4 {[%clk 0:01:18.1]} 32... c5 {[%clk 0:04:13.2]} 33. Qe3 {[%clk
0:01:13.9]} 33... cxd4 {[%clk 0:04:12.9]} 34. Qxd4 {[%clk 0:01:15.8]} 34... Kb8
{[%clk 0:03:51.4]} 35. Bh5 {[%clk 0:01:14.5]} 35... Na8 {[%clk 0:03:15.2]} 36.
f5 {[%clk 0:00:41.1]} 36... Nc7 {[%clk 0:03:14]} 37. fxe6 {[%clk 0:00:42.3]}
37... Nxe6 {[%clk 0:02:17.5]} 38. Qxd5 {[%clk 0:00:43.1]} 38... Nb6 {[%clk
0:02:18.8]} 39. Qd6+ {[%clk 0:00:41]} 39... Ka7 {[%clk 0:02:19.9]} 40. Kb1
{[%clk 0:00:23.6]} 40... Ng5 {[%clk 0:01:51.2]} 41. Qc5 {[%clk 0:00:20.6]} 41...
Qe6 {[%clk 0:01:43.7]} 42. Na4 {[%clk 0:00:17.2]} 42... Rhg8 {[%clk 0:01:22.4]}
43. Rd1 {[%clk 0:00:15.4]} 43... Qc6 {[%clk 0:01:06.8]} 44. Qxc6 {[%clk
0:00:06.5]} 44... bxc6 {[%clk 0:01:08.7]} 45. Nc5 {[%clk 0:00:08]} 45... Rxg7
{[%clk 0:01:05.4]} 46. fxg7 {[%clk 0:00:09.9]} 46... Rg8 {[%clk 0:01:05.6]} 47.
Rd6 {[%clk 0:00:11.3]} 47... Rxg7 {[%clk 0:00:56.6]} 48. Rxc6 {[%clk 0:00:12.8]}
48... Nh3 {[%clk 0:00:37.8]} 49. Rc7+ {[%clk 0:00:13]} 49... Kb8 {[%clk
0:00:33.8]} 50. Rb7+ {[%clk 0:00:14.1]} 50... Kc8 {[%clk 0:00:35.4]} 51. Rxb6
{[%clk 0:00:15.5]} 51... Nf4 {[%clk 0:00:32.4]} 52. Rxh6 {[%clk 0:00:15.6]}
52... Rg1+ {[%clk 0:00:32.2]} 53. Ka2 {[%clk 0:00:16.8]} 53... Kc7 {[%clk
0:00:32.6]} 54. Bxf7 {[%clk 0:00:17.7]} 54... Ne2 {[%clk 0:00:31.1]} 55. Nd3
{[%clk 0:00:17.3]} 55... Nd4 {[%clk 0:00:29.4]} 56. Bb3 {[%clk 0:00:17.9]} 56...
Ne2 {[%clk 0:00:29.3]} 57. Rxa6 {[%clk 0:00:17]} 57... Rd1 {[%clk 0:00:29]} 58.
a4 {[%clk 0:00:17.7]} 58... Kb7 {[%clk 0:00:29.7]} 59. Rh6 {[%clk 0:00:18]}
59... Nd4 {[%clk 0:00:28.2]} 60. e6 {[%clk 0:00:18.4]} 60... Nc6 {[%clk
0:00:28.6]} 61. e7 {[%clk 0:00:17.1]} 1-0

[Event "GrandPrix_30.05"]
[Site "Chess.com"]
[Date "2020.05.30"]
[Round "4"]
[White "Bulldog167"]
[Black "mishanick"]
[Result "0-1"]
[WhiteElo "2477"]
[BlackElo "2937"]
[TimeControl "600+2"]
[EndTime "9:55:43 PDT"]
[Termination "mishanick won on time"]

1. d4 {[%clk 0:10:01.9]} 1... Nf6 {[%clk 0:10:01.3]} 2. Nf3 {[%clk 0:09:58.4]}
2... d5 {[%clk 0:10:02.2]} 3. g3 {[%clk 0:09:38.6]} 3... c6 {[%clk 0:10:00.2]}
4. Bg2 {[%clk 0:09:39.2]} 4... g6 {[%clk 0:10:00.5]} 5. O-O {[%clk 0:09:39.3]}
5... Bg7 {[%clk 0:10:02.1]} 6. Nbd2 {[%clk 0:09:24.1]} 6... O-O {[%clk
0:10:02.3]} 7. c3 {[%clk 0:09:10.4]} 7... Bf5 {[%clk 0:09:54.5]} 8. Nh4 {[%clk
0:08:48.1]} 8... Bg4 {[%clk 0:09:37.5]} 9. h3 {[%clk 0:08:46.5]} 9... Bc8 {[%clk
0:09:39.1]} 10. Kh2 {[%clk 0:08:11.3]} 10... Nbd7 {[%clk 0:09:22.8]} 11. f4
{[%clk 0:08:06.1]} 11... c5 {[%clk 0:09:23.3]} 12. e3 {[%clk 0:08:04.6]} 12...
e6 {[%clk 0:09:19]} 13. Nhf3 {[%clk 0:08:01.4]} 13... b5 {[%clk 0:09:17]} 14. g4
{[%clk 0:07:54.3]} 14... b4 {[%clk 0:09:01.5]} 15. Ne5 {[%clk 0:07:26.1]} 15...
Ba6 {[%clk 0:08:58.2]} 16. Rf2 {[%clk 0:07:25.2]} 16... bxc3 {[%clk 0:08:09.7]}
17. bxc3 {[%clk 0:07:25.9]} 17... cxd4 {[%clk 0:08:01.6]} 18. cxd4 {[%clk
0:07:24.7]} 18... Nxe5 {[%clk 0:08:02.4]} 19. fxe5 {[%clk 0:07:06.5]} 19... Nd7
{[%clk 0:08:03.1]} 20. Ba3 {[%clk 0:07:07.1]} 20... Re8 {[%clk 0:07:59]} 21. Qa4
{[%clk 0:05:45.3]} 21... Bd3 {[%clk 0:07:03]} 22. Rc1 {[%clk 0:05:12]} 22... Nb6
{[%clk 0:06:05.2]} 23. Qb3 {[%clk 0:04:08.3]} 23... Bc4 {[%clk 0:06:05.4]} 24.
Nxc4 {[%clk 0:04:07.6]} 24... Nxc4 {[%clk 0:06:07.3]} 25. Qb7 {[%clk 0:03:22.9]}
25... Kh8 {[%clk 0:02:46.2]} 26. Rxc4 {[%clk 0:02:17.4]} 26... Rb8 {[%clk
0:02:47.2]} 27. Qxa7 {[%clk 0:02:17.9]} 27... dxc4 {[%clk 0:02:14.3]} 28. Rxf7
{[%clk 0:02:18.7]} 28... Rg8 {[%clk 0:02:15.4]} 29. Be7 {[%clk 0:01:07.5]} 29...
Qb6 {[%clk 0:02:15.6]} 30. Qd7 {[%clk 0:01:08.3]} 30... Qb5 {[%clk 0:01:46.2]}
31. Qxe6 {[%clk 0:00:36.3]} 31... Rb6 {[%clk 0:00:56]} 32. Bd6 {[%clk
0:00:20.2]} 32... c3 {[%clk 0:00:37.2]} 33. Rc7 {[%clk 0:00:19.9]} 33... Qa6
{[%clk 0:00:22]} 34. Rxc3 {[%clk 0:00:14.3]} 34... Rb2 {[%clk 0:00:22.9]} 35.
Qd5 {[%clk 0:00:06.9]} 35... Rd8 {[%clk 0:00:17.1]} 36. a3 {[%clk 0:00:03.9]}
36... Bf8 {[%clk 0:00:15.7]} 37. Qf3 {[%clk 0:00:03.9]} 37... Bg7 {[%clk
0:00:13]} 38. Rc7 {[%clk 0:00:04.6]} 38... Rg8 {[%clk 0:00:08.1]} 39. Be7 {[%clk
0:00:04.4]} 39... Qa5 {[%clk 0:00:06.8]} 40. Rc6 {[%clk 0:00:04.4]} 40... Qe1
{[%clk 0:00:06.8]} 41. Bf6 {[%clk 0:00:05.4]} 41... Rf2 {[%clk 0:00:08]} 42.
Bxg7+ {[%clk 0:00:06.7]} 42... Rxg7 {[%clk 0:00:09]} 43. Rc8+ {[%clk 0:00:07.5]}
43... Rg8 {[%clk 0:00:10.6]} 44. Rxg8+ {[%clk 0:00:08.6]} 44... Kxg8 {[%clk
0:00:12.5]} 45. Qd5+ {[%clk 0:00:09.5]} 45... Kg7 {[%clk 0:00:12.6]} 46. e6
{[%clk 0:00:10]} 46... Qxe3 {[%clk 0:00:13.1]} 47. Qd7+ {[%clk 0:00:05.9]} 47...
Kh6 {[%clk 0:00:13.1]} 48. Qe7 {[%clk 0:00:04.9]} 48... Qf4+ {[%clk 0:00:07]}
49. Kg1 {[%clk 0:00:04.9]} 49... Qg3 {[%clk 0:00:06.6]} 50. g5+ {[%clk
0:00:03.3]} 50... Kh5 {[%clk 0:00:07.8]} 51. Qxh7+ {[%clk 0:00:04.3]} 51... Kxg5
{[%clk 0:00:08.8]} 52. Qe7+ {[%clk 0:00:05.9]} 52... Kh6 {[%clk 0:00:10]} 53.
Qb7 {[%clk 0:00:06.5]} 53... Re2 {[%clk 0:00:10.2]} 54. Qf3 {[%clk 0:00:06.6]}
54... Re1+ {[%clk 0:00:11.3]} 0-1

[Event "GrandPrix_30.05"]
[Site "Chess.com"]
[Date "2020.05.30"]
[Round "4"]
[White "Arasvard"]
[Black "DenisQ"]
[Result "1/2-1/2"]
[WhiteElo "2020"]
[BlackElo "2175"]
[TimeControl "600+2"]
[EndTime "9:55:45 PDT"]
[Termination "Game drawn - insufficient material"]

1. d4 {[%clk 0:09:29.5]} 1... Nf6 {[%clk 0:09:58.6]} 2. c4 {[%clk 0:09:28.5]}
2... g6 {[%clk 0:09:58.7]} 3. f3 {[%clk 0:09:29.4]} 3... d5 {[%clk 0:09:44.5]}
4. cxd5 {[%clk 0:09:29.4]} 4... Nxd5 {[%clk 0:09:45.6]} 5. e4 {[%clk 0:09:30.6]}
5... Nb6 {[%clk 0:09:46.7]} 6. Nc3 {[%clk 0:09:32.2]} 6... Bg7 {[%clk
0:09:47.3]} 7. Be3 {[%clk 0:09:33.7]} 7... Nc6 {[%clk 0:09:36.1]} 8. d5 {[%clk
0:09:34.4]} 8... Ne5 {[%clk 0:09:29.5]} 9. Bd4 {[%clk 0:09:27.4]} 9... O-O
{[%clk 0:09:04.7]} 10. f4 {[%clk 0:09:14.1]} 10... Ng4 {[%clk 0:08:50.8]} 11.
Bxg7 {[%clk 0:09:04.1]} 11... Kxg7 {[%clk 0:08:52.7]} 12. Nf3 {[%clk 0:09:01.6]}
12... c6 {[%clk 0:08:24.2]} 13. dxc6 {[%clk 0:08:45.9]} 13... bxc6 {[%clk
0:08:22.3]} 14. h3 {[%clk 0:07:28.5]} 14... Ne3 {[%clk 0:08:08.3]} 15. Qxd8
{[%clk 0:07:27.7]} 15... Rxd8 {[%clk 0:08:05]} 16. Kf2 {[%clk 0:07:26.6]} 16...
Nxf1 {[%clk 0:06:46.5]} 17. Rhxf1 {[%clk 0:07:26.9]} 17... Bb7 {[%clk
0:06:43.8]} 18. Rfd1 {[%clk 0:06:57]} 18... c5 {[%clk 0:06:42.8]} 19. b3 {[%clk
0:06:55.3]} 19... a5 {[%clk 0:06:04.4]} 20. Rac1 {[%clk 0:05:53.6]} 20... Rxd1
{[%clk 0:05:57.8]} 21. Nxd1 {[%clk 0:05:23.4]} 21... Bxe4 {[%clk 0:05:56.3]} 22.
Rxc5 {[%clk 0:05:24.3]} 22... a4 {[%clk 0:03:13.2]} 23. b4 {[%clk 0:05:10.4]}
23... a3 {[%clk 0:03:06.3]} 24. Nc3 {[%clk 0:04:49.3]} 24... Bf5 {[%clk
0:02:40.1]} 25. Nd4 {[%clk 0:04:40.6]} 25... Bd7 {[%clk 0:02:39.7]} 26. Ke3
{[%clk 0:04:21.6]} 26... f6 {[%clk 0:02:23.3]} 27. Rc7 {[%clk 0:04:09.3]} 27...
Kf7 {[%clk 0:02:13]} 28. Rb7 {[%clk 0:03:54.4]} 28... Nc4+ {[%clk 0:02:12.1]}
29. Kd3 {[%clk 0:03:55]} 29... Nb2+ {[%clk 0:01:55.1]} 30. Kc2 {[%clk
0:03:55.9]} 30... Rd8 {[%clk 0:01:55.2]} 31. b5 {[%clk 0:03:23.8]} 31... Bxh3
{[%clk 0:01:17.4]} 32. Nc6 {[%clk 0:03:15]} 32... Bf5+ {[%clk 0:01:15.6]} 33.
Kb3 {[%clk 0:03:15.9]} 33... Rd3 {[%clk 0:00:52.8]} 34. Rxe7+ {[%clk 0:03:06.1]}
34... Kf8 {[%clk 0:00:52.4]} 35. Rxh7 {[%clk 0:02:55.7]} 35... Nd1 {[%clk
0:00:51.2]} 36. Kxa3 {[%clk 0:02:16.7]} 36... Nxc3 {[%clk 0:00:51.3]} 37. Kb4
{[%clk 0:02:07.6]} 37... Nxa2+ {[%clk 0:00:47.6]} 38. Kc5 {[%clk 0:02:08.1]}
38... Nc3 {[%clk 0:00:28.7]} 39. b6 {[%clk 0:02:06.5]} 39... Na4+ {[%clk
0:00:27.1]} 40. Kb5 {[%clk 0:02:05.7]} 40... Nxb6 {[%clk 0:00:23.8]} 41. Kxb6
{[%clk 0:02:07.6]} 41... Rd2 {[%clk 0:00:22.4]} 42. g3 {[%clk 0:02:00]} 42...
Rd3 {[%clk 0:00:22.4]} 43. Kc7 {[%clk 0:01:44.5]} 43... Rxg3 {[%clk 0:00:21.6]}
44. Nd4 {[%clk 0:01:41.9]} 44... Rg4 {[%clk 0:00:18.8]} 45. Nxf5 {[%clk
0:01:39.6]} 45... gxf5 {[%clk 0:00:20.7]} 46. Kd6 {[%clk 0:01:40.9]} 46... Kg8
{[%clk 0:00:16.2]} 47. Ra7 {[%clk 0:01:39.8]} 47... Rg7 {[%clk 0:00:13.4]} 48.
Ra8+ {[%clk 0:01:38.5]} 48... Kh7 {[%clk 0:00:12.9]} 49. Ke6 {[%clk 0:01:39]}
49... Kg6 {[%clk 0:00:14.1]} 50. Ra1 {[%clk 0:01:38.6]} 50... Rb7 {[%clk
0:00:09.3]} 51. Rg1+ {[%clk 0:01:37.7]} 51... Kh7 {[%clk 0:00:10.2]} 52. Kxf6
{[%clk 0:01:36.5]} 52... Rb6+ {[%clk 0:00:10.6]} 53. Kxf5 {[%clk 0:01:37.4]}
53... Rb5+ {[%clk 0:00:11.6]} 54. Ke4 {[%clk 0:01:34.4]} 54... Rb4+ {[%clk
0:00:12.7]} 55. Ke5 {[%clk 0:01:34.5]} 55... Rb5+ {[%clk 0:00:13.7]} 56. Ke6
{[%clk 0:01:23]} 56... Rb6+ {[%clk 0:00:14.7]} 57. Kd7 {[%clk 0:01:17.9]} 57...
Rb7+ {[%clk 0:00:15.4]} 58. Kd6 {[%clk 0:01:05]} 58... Rb6+ {[%clk 0:00:15.2]}
59. Kd7 {[%clk 0:01:02.3]} 59... Rb7+ {[%clk 0:00:16]} 60. Kd8 {[%clk
0:00:51.2]} 60... Rb4 {[%clk 0:00:15.4]} 61. Rf1 {[%clk 0:00:33.8]} 61... Kg6
{[%clk 0:00:15.3]} 62. Ke7 {[%clk 0:00:32.7]} 62... Kf5 {[%clk 0:00:16]} 63. Kf7
{[%clk 0:00:32.8]} 63... Rxf4 {[%clk 0:00:15.9]} 64. Rxf4+ {[%clk 0:00:34.7]}
64... Kxf4 {[%clk 0:00:17.1]} 1/2-1/2

[Event "GrandPrix_30.05"]
[Site "Chess.com"]
[Date "2020.05.30"]
[Round "4"]
[White "Tesla37"]
[Black "aleksandrovaleksei"]
[Result "0-1"]
[WhiteElo "2723"]
[BlackElo "2553"]
[TimeControl "600+2"]
[EndTime "9:55:54 PDT"]
[Termination "aleksandrovaleksei won by resignation"]

1. e4 {[%clk 0:10:01.9]} 1... e5 {[%clk 0:10:00.1]} 2. Nf3 {[%clk 0:10:01.5]}
2... Nc6 {[%clk 0:10:01.1]} 3. Bc4 {[%clk 0:10:02.2]} 3... Bc5 {[%clk
0:10:01.1]} 4. c3 {[%clk 0:10:01.8]} 4... Nf6 {[%clk 0:10:01.5]} 5. d3 {[%clk
0:10:02.8]} 5... d6 {[%clk 0:10:02.2]} 6. O-O {[%clk 0:10:01.5]} 6... h6 {[%clk
0:10:02.3]} 7. a4 {[%clk 0:10:01.3]} 7... a6 {[%clk 0:10:02.1]} 8. Nbd2 {[%clk
0:09:58.4]} 8... O-O {[%clk 0:10:02.2]} 9. h3 {[%clk 0:09:47.8]} 9... Re8 {[%clk
0:09:53.4]} 10. Re1 {[%clk 0:09:46.9]} 10... Be6 {[%clk 0:09:53.2]} 11. Bxe6
{[%clk 0:09:39.1]} 11... Rxe6 {[%clk 0:09:53.6]} 12. b4 {[%clk 0:09:19.3]} 12...
Ba7 {[%clk 0:09:53.3]} 13. Nc4 {[%clk 0:09:08.7]} 13... d5 {[%clk 0:09:39.4]}
14. Ncd2 {[%clk 0:07:45.4]} 14... d4 {[%clk 0:08:00.8]} 15. cxd4 {[%clk
0:07:26]} 15... Bxd4 {[%clk 0:07:22.4]} 16. Rb1 {[%clk 0:07:11]} 16... Bc3
{[%clk 0:06:43.2]} 17. b5 {[%clk 0:07:08.1]} 17... axb5 {[%clk 0:06:43.3]} 18.
Rxb5 {[%clk 0:06:20.6]} 18... Rd6 {[%clk 0:04:40.2]} 19. Rxb7 {[%clk 0:04:08.7]}
19... Rxd3 {[%clk 0:04:36.9]} 20. Qc2 {[%clk 0:04:00.4]} 20... Nb4 {[%clk
0:04:09.2]} 21. Qb1 {[%clk 0:03:53.2]} 21... Rxa4 {[%clk 0:03:59.2]} 22. Nxe5
{[%clk 0:03:40.8]} 22... Ra1 {[%clk 0:03:14.5]} 23. Qb3 {[%clk 0:03:36.5]} 23...
Bxe5 {[%clk 0:03:01.3]} 24. Qxb4 {[%clk 0:03:36.1]} 24... Kh7 {[%clk 0:02:55.8]}
25. Qb5 {[%clk 0:02:47.9]} 25... Bc3 {[%clk 0:02:41]} 26. e5 {[%clk 0:02:45.2]}
26... Ne4 {[%clk 0:02:13.5]} 27. Rb8 {[%clk 0:02:11.4]} 27... Qd5 {[%clk
0:02:11.3]} 28. Qe8 {[%clk 0:01:59.7]} 28... Bxd2 {[%clk 0:02:05]} 29. e6 {[%clk
0:01:25.5]} 29... Qxe6 {[%clk 0:01:06.9]} 30. Qxe6 {[%clk 0:01:15.1]} 30... fxe6
{[%clk 0:01:06.5]} 31. Bxd2 {[%clk 0:01:16]} 31... Rxe1+ {[%clk 0:01:06.5]} 32.
Bxe1 {[%clk 0:01:17.1]} 32... Kg6 {[%clk 0:01:03.4]} 33. Kf1 {[%clk 0:01:17.1]}
33... Rd6 {[%clk 0:00:58.2]} 34. Ke2 {[%clk 0:01:12.1]} 34... Rc6 {[%clk
0:00:58.1]} 35. Kd3 {[%clk 0:00:58.7]} 35... Rc1 {[%clk 0:00:46.8]} 36. Ke2
{[%clk 0:00:50.1]} 36... Nc3+ {[%clk 0:00:39.6]} 37. Bxc3 {[%clk 0:00:42.6]}
37... Rxc3 {[%clk 0:00:40.2]} 38. Rd8 {[%clk 0:00:40.5]} 38... Rc2+ {[%clk
0:00:35.6]} 39. Ke3 {[%clk 0:00:40.7]} 39... h5 {[%clk 0:00:31.8]} 40. Rd7
{[%clk 0:00:39.5]} 40... Kf6 {[%clk 0:00:30.6]} 41. h4 {[%clk 0:00:38.3]} 41...
g6 {[%clk 0:00:29.1]} 42. g3 {[%clk 0:00:39]} 42... c5 {[%clk 0:00:29]} 43. Rc7
{[%clk 0:00:39.3]} 43... Rc3+ {[%clk 0:00:28]} 44. Ke4 {[%clk 0:00:39.4]} 44...
Rc4+ {[%clk 0:00:28.7]} 45. Ke3 {[%clk 0:00:39.2]} 45... Kf5 {[%clk 0:00:26.3]}
46. Rf7+ {[%clk 0:00:38.5]} 46... Ke5 {[%clk 0:00:27.1]} 47. Rg7 {[%clk
0:00:39.7]} 47... Rc3+ {[%clk 0:00:22.4]} 48. Kd2 {[%clk 0:00:35.8]} 48... Rf3
{[%clk 0:00:22.9]} 49. Rxg6 {[%clk 0:00:33.8]} 49... Rxf2+ {[%clk 0:00:23.5]}
50. Ke3 {[%clk 0:00:34.9]} 50... Rf5 {[%clk 0:00:22.7]} 51. g4 {[%clk
0:00:35.5]} 51... hxg4 {[%clk 0:00:23.2]} 52. Rxg4 {[%clk 0:00:36.6]} 52... Kd5
{[%clk 0:00:24.3]} 53. Rg3 {[%clk 0:00:33.9]} 53... c4 {[%clk 0:00:22]} 54. Rh3
{[%clk 0:00:34.7]} 54... Rh5 {[%clk 0:00:22.5]} 55. Kd2 {[%clk 0:00:32.2]} 55...
Kd4 {[%clk 0:00:23.2]} 56. Kc2 {[%clk 0:00:32]} 56... e5 {[%clk 0:00:24.4]} 57.
Kd2 {[%clk 0:00:33.1]} 57... e4 {[%clk 0:00:25.4]} 58. Rh1 {[%clk 0:00:31.7]}
58... Ra5 {[%clk 0:00:24.8]} 59. Rh3 {[%clk 0:00:27.5]} 59... e3+ {[%clk
0:00:23.6]} 60. Ke2 {[%clk 0:00:25.1]} 60... Ra2+ {[%clk 0:00:24.3]} 61. Kf3
{[%clk 0:00:25.7]} 61... Kd3 {[%clk 0:00:23.9]} 62. h5 {[%clk 0:00:22.8]} 62...
Rf2+ {[%clk 0:00:24.6]} 63. Kg4 {[%clk 0:00:23.9]} 63... Rf8 {[%clk 0:00:23.4]}
64. h6 {[%clk 0:00:23.5]} 64... Kd2 {[%clk 0:00:24.5]} 65. h7 {[%clk 0:00:24]}
65... e2 {[%clk 0:00:25.7]} 0-1